[Event "*** Titled Tuesday 3|2 Blitz"]
[Site "Chess.com"]
[Date "2016.09.06"]
[Round "9"]
[White "FearlessKing64"]
[Black "GianmarcoVaR"]
[Result "0-1"]
[WhiteElo "2301"]
[BlackElo "2417"]
[TimeControl "180+2"]
[EndTime "18:49:59 PDT"]
[Termination "GianmarcoVaR won by checkmate"]

1. e4 {[%clk 0:02:01.8]} 1... c6 {[%clk 0:02:50.6]} 2. d4 {[%clk 0:02:02.3]}
2... d5 {[%clk 0:02:51.6]} 3. e5 {[%clk 0:02:02.8]} 3... Bf5 {[%clk 0:02:52.5]}
4. h4 {[%clk 0:02:04]} 4... h5 {[%clk 0:02:53]} 5. Bg5 {[%clk 0:02:01.3]} 5...
Qb6 {[%clk 0:02:53.1]} 6. Bd3 {[%clk 0:02:01]} 6... Bxd3 {[%clk 0:02:52]} 7.
Qxd3 {[%clk 0:02:01.4]} 7... Qxb2 {[%clk 0:02:53]} 8. Ne2 {[%clk 0:01:57.1]}
8... e6 {[%clk 0:02:25.5]} 9. O-O {[%clk 0:01:55.3]} 9... Qb5 {[%clk 0:02:13.9]}
10. Qf3 {[%clk 0:01:41.6]} 10... Be7 {[%clk 0:02:05.3]} 11. Nbc3 {[%clk
0:01:37.3]} 11... Qa6 {[%clk 0:01:42.1]} 12. a4 {[%clk 0:01:31.3]} 12... Nd7
{[%clk 0:01:36.4]} 13. a5 {[%clk 0:01:31.4]} 13... Bxg5 {[%clk 0:01:28.7]} 14.
hxg5 {[%clk 0:01:31.8]} 14... Ne7 {[%clk 0:01:30.6]} 15. Na4 {[%clk 0:01:18.3]}
15... Nf5 {[%clk 0:01:00.5]} 16. Rfb1 {[%clk 0:01:10.8]} 16... Rc8 {[%clk
0:00:51.9]} 17. g6 {[%clk 0:01:02.2]} 17... fxg6 {[%clk 0:00:52.9]} 18. Nf4
{[%clk 0:01:01.6]} 18... Kf7 {[%clk 0:00:49]} 19. c3 {[%clk 0:00:52.9]} 19... c5
{[%clk 0:00:30]} 20. g4 {[%clk 0:00:40.5]} 20... hxg4 {[%clk 0:00:30.3]} 21.
Qxg4 {[%clk 0:00:39]} 21... Rh6 {[%clk 0:00:31.2]} 22. Nh3 {[%clk 0:00:37.3]}
22... Rch8 {[%clk 0:00:12.1]} 23. Ng5+ {[%clk 0:00:38.4]} 23... Ke7 {[%clk
0:00:13]} 24. Kg2 {[%clk 0:00:30.1]} 24... Rh2+ {[%clk 0:00:11.9]} 25. Kf3
{[%clk 0:00:31.2]} 25... Qd3+ {[%clk 0:00:12.5]} 26. Kf4 {[%clk 0:00:19]} 26...
Rxf2+ {[%clk 0:00:13]} 27. Nf3 {[%clk 0:00:19.5]} 27... Rxf3+ {[%clk 0:00:11.3]}
28. Qxf3 {[%clk 0:00:20]} 28... Rh4+ {[%clk 0:00:12.4]} 29. Kg5 {[%clk
0:00:18.4]} 29... Qd2+ {[%clk 0:00:11.9]} 30. Kxg6 {[%clk 0:00:18.4]} 30... Nf8#
{[%clk 0:00:12]} 0-1

[Event "*** Titled Tuesday 3|2 Blitz"]
[Site "Chess.com"]
[Date "2016.09.06"]
[Round "9"]
[White "Evgeny_Levin"]
[Black "dretch"]
[Result "1-0"]
[WhiteElo "2676"]
[BlackElo "2641"]
[TimeControl "180+2"]
[EndTime "18:50:45 PDT"]
[Termination "Evgeny_Levin won by resignation"]

1. d4 {[%clk 0:03:02]} 1... d5 {[%clk 0:02:58.5]} 2. c4 {[%clk 0:03:02.8]} 2...
c6 {[%clk 0:02:59.8]} 3. Nf3 {[%clk 0:03:03.1]} 3... Nf6 {[%clk 0:03:00.8]} 4.
Nc3 {[%clk 0:02:55.6]} 4... dxc4 {[%clk 0:03:02.1]} 5. a4 {[%clk 0:02:54.2]}
5... e6 {[%clk 0:03:03.4]} 6. e3 {[%clk 0:02:41.3]} 6... c5 {[%clk 0:03:04]} 7.
Bxc4 {[%clk 0:02:42.3]} 7... Nc6 {[%clk 0:03:05.7]} 8. O-O {[%clk 0:02:42.4]}
8... cxd4 {[%clk 0:03:06.1]} 9. exd4 {[%clk 0:02:44.3]} 9... Be7 {[%clk
0:03:06.9]} 10. d5 {[%clk 0:02:37.3]} 10... exd5 {[%clk 0:03:07.5]} 11. Nxd5
{[%clk 0:02:38.4]} 11... Nxd5 {[%clk 0:03:08.4]} 12. Bxd5 {[%clk 0:02:39.6]}
12... O-O {[%clk 0:03:08.6]} 13. Be3 {[%clk 0:02:33.7]} 13... Bg4 {[%clk
0:02:53.5]} 14. h3 {[%clk 0:02:32.8]} 14... Bh5 {[%clk 0:02:46.2]} 15. Qb3
{[%clk 0:02:33.7]} 15... Na5 {[%clk 0:02:41.1]} 16. Qa2 {[%clk 0:02:33.9]} 16...
Bb4 {[%clk 0:02:14]} 17. Rfd1 {[%clk 0:02:30.5]} 17... Qf6 {[%clk 0:02:12.8]}
18. g4 {[%clk 0:02:14.3]} 18... Bg6 {[%clk 0:02:11.7]} 19. Bg5 {[%clk
0:02:15.8]} 19... Qb6 {[%clk 0:02:11.7]} 20. Ne5 {[%clk 0:02:17.1]} 20... Bc5
{[%clk 0:01:28.3]} 21. Nd7 {[%clk 0:02:00.8]} 21... Bxf2+ {[%clk 0:01:29]} 22.
Kf1 {[%clk 0:01:27.6]} 22... Qa6+ {[%clk 0:00:17]} 23. Kxf2 {[%clk 0:01:23.9]}
23... Rfe8 {[%clk 0:00:18.6]} 24. b4 {[%clk 0:01:04.5]} 24... Rac8 {[%clk
0:00:10.4]} 25. b5 {[%clk 0:01:04.5]} 25... Qd6 {[%clk 0:00:11.1]} 26. Bxf7+
{[%clk 0:01:05.3]} 26... Bxf7 {[%clk 0:00:12.3]} 27. Rxd6 {[%clk 0:01:05.9]}
27... Bxa2 {[%clk 0:00:12.4]} 28. Rxa2 {[%clk 0:01:07.8]} 28... Nc4 {[%clk
0:00:05]} 29. Rd4 {[%clk 0:01:04.9]} 29... h6 {[%clk 0:00:04.5]} 30. Bf4 {[%clk
0:00:57.7]} 30... Na5 {[%clk 0:00:03.7]} 31. Re2 {[%clk 0:00:55.5]} 31... Nb3
{[%clk 0:00:04.5]} 32. Rxe8+ {[%clk 0:00:54.8]} 32... Rxe8 {[%clk 0:00:06.4]}
33. Rd5 {[%clk 0:00:54.8]} 33... b6 {[%clk 0:00:03.7]} 34. Be3 {[%clk
0:00:50.3]} 34... Na5 {[%clk 0:00:03.7]} 35. Ne5 {[%clk 0:00:48.6]} 35... Nb3
{[%clk 0:00:04.4]} 36. Nc6 {[%clk 0:00:48.7]} 36... Rf8+ {[%clk 0:00:03.9]} 37.
Ke2 {[%clk 0:00:48.1]} 37... Rf7 {[%clk 0:00:05.4]} 38. Rd8+ {[%clk 0:00:42.5]}
38... Kh7 {[%clk 0:00:06]} 39. Ra8 {[%clk 0:00:44.1]} 39... Rf6 {[%clk
0:00:03.5]} 40. Rxa7 {[%clk 0:00:44.5]} 40... Re6 {[%clk 0:00:04.9]} 41. Kd3
{[%clk 0:00:44.8]} 41... Rd6+ {[%clk 0:00:05.6]} 42. Kc4 {[%clk 0:00:44.9]}
42... Na1 {[%clk 0:00:06.3]} 43. Bxb6 {[%clk 0:00:43.9]} 43... Nc2 {[%clk
0:00:07.6]} 44. Bd4 {[%clk 0:00:44.3]} 44... h5 {[%clk 0:00:06.7]} 45. Rxg7+
{[%clk 0:00:43.5]} 45... Kh8 {[%clk 0:00:07.7]} 46. Rd7+ {[%clk 0:00:44.1]}
46... Rxd4+ {[%clk 0:00:08.4]} 47. Rxd4 {[%clk 0:00:46]} 1-0

[Event "*** Titled Tuesday 3|2 Blitz"]
[Site "Chess.com"]
[Date "2016.09.06"]
[Round "9"]
[White "DeviatkinAndrey"]
[Black "cheese111"]
[Result "1-0"]
[WhiteElo "2566"]
[BlackElo "2294"]
[TimeControl "180+2"]
[EndTime "18:51:01 PDT"]
[Termination "DeviatkinAndrey won on time"]

1. d4 {[%clk 0:02:57.3]} 1... Nf6 {[%clk 0:03:00.3]} 2. Bg5 {[%clk 0:02:57.1]}
2... Ne4 {[%clk 0:02:59.8]} 3. Bf4 {[%clk 0:02:57.3]} 3... d5 {[%clk 0:03:00.7]}
4. Nd2 {[%clk 0:02:57.4]} 4... Bf5 {[%clk 0:02:59.4]} 5. Nxe4 {[%clk 0:02:48]}
5... Bxe4 {[%clk 0:03:01.3]} 6. f3 {[%clk 0:02:49.3]} 6... Bg6 {[%clk
0:02:59.2]} 7. c3 {[%clk 0:02:35.1]} 7... e6 {[%clk 0:02:58.7]} 8. Qb3 {[%clk
0:02:36.3]} 8... b6 {[%clk 0:02:48.7]} 9. e3 {[%clk 0:02:33.7]} 9... Bd6 {[%clk
0:02:42.5]} 10. Nh3 {[%clk 0:02:31.3]} 10... O-O {[%clk 0:02:35.3]} 11. Be2
{[%clk 0:02:19.8]} 11... c5 {[%clk 0:02:31.6]} 12. O-O {[%clk 0:02:14.4]} 12...
Nc6 {[%clk 0:02:20.4]} 13. Bxd6 {[%clk 0:02:10]} 13... Qxd6 {[%clk 0:02:22.3]}
14. Nf4 {[%clk 0:01:56.7]} 14... cxd4 {[%clk 0:02:07.1]} 15. Nxg6 {[%clk
0:01:57.3]} 15... hxg6 {[%clk 0:02:09]} 16. cxd4 {[%clk 0:01:57.9]} 16... Rac8
{[%clk 0:02:01.9]} 17. Rac1 {[%clk 0:01:58.5]} 17... Rc7 {[%clk 0:01:51.9]} 18.
Qa4 {[%clk 0:01:46.3]} 18... Ne7 {[%clk 0:01:32.6]} 19. Bd3 {[%clk 0:01:18.5]}
19... Rfc8 {[%clk 0:01:27.9]} 20. Rxc7 {[%clk 0:01:17.8]} 20... Qxc7 {[%clk
0:01:23.2]} 21. Qd1 {[%clk 0:01:13.1]} 21... Nf5 {[%clk 0:01:19.6]} 22. Qd2
{[%clk 0:01:13.6]} 22... Qc6 {[%clk 0:01:02.3]} 23. g3 {[%clk 0:01:08.7]} 23...
Qa4 {[%clk 0:00:53.4]} 24. b3 {[%clk 0:00:46]} 24... Qc6 {[%clk 0:00:42.8]} 25.
Kf2 {[%clk 0:00:45.4]} 25... Qc3 {[%clk 0:00:21.3]} 26. Qxc3 {[%clk 0:00:45.2]}
26... Rxc3 {[%clk 0:00:21.7]} 27. Ke2 {[%clk 0:00:45.6]} 27... Kf8 {[%clk
0:00:17]} 28. Kd2 {[%clk 0:00:46.1]} 28... Rc7 {[%clk 0:00:17.3]} 29. Rg1 {[%clk
0:00:24.6]} 29... Ke7 {[%clk 0:00:17.4]} 30. Be2 {[%clk 0:00:16.6]} 30... Rc8
{[%clk 0:00:16.4]} 31. g4 {[%clk 0:00:15.1]} 31... Nd6 {[%clk 0:00:16.8]} 32. h4
{[%clk 0:00:15.2]} 32... Rh8 {[%clk 0:00:17.2]} 33. Rh1 {[%clk 0:00:16.6]} 33...
Kd7 {[%clk 0:00:14.3]} 34. Bd3 {[%clk 0:00:16.8]} 34... Ke7 {[%clk 0:00:14.1]}
35. e4 {[%clk 0:00:18.2]} 35... dxe4 {[%clk 0:00:13.4]} 36. fxe4 {[%clk
0:00:19.6]} 36... g5 {[%clk 0:00:12.3]} 37. e5 {[%clk 0:00:17.7]} 37... Ne8
{[%clk 0:00:06.3]} 38. h5 {[%clk 0:00:19.2]} 38... Nc7 {[%clk 0:00:05.1]} 39.
Be4 {[%clk 0:00:15.1]} 39... Nd5 {[%clk 0:00:03.7]} 40. Bxd5 {[%clk 0:00:15.8]}
40... exd5 {[%clk 0:00:05.6]} 41. Rf1 {[%clk 0:00:14.2]} 1-0

[Event "*** Titled Tuesday 3|2 Blitz"]
[Site "Chess.com"]
[Date "2016.09.06"]
[Round "9"]
[White "Ksenia_Legenko"]
[Black "hypert"]
[Result "0-1"]
[WhiteElo "2030"]
[BlackElo "2323"]
[TimeControl "180+2"]
[EndTime "18:51:05 PDT"]
[Termination "hypert won by resignation"]

1. d4 {[%clk 0:03:01.9]} 1... Nf6 {[%clk 0:03:00.4]} 2. c4 {[%clk 0:03:02.7]}
2... e6 {[%clk 0:03:02]} 3. g3 {[%clk 0:03:03.6]} 3... d5 {[%clk 0:03:01]} 4.
Nf3 {[%clk 0:03:03.8]} 4... Bb4+ {[%clk 0:03:01.1]} 5. Bd2 {[%clk 0:03:04.6]}
5... Bd6 {[%clk 0:03:02]} 6. Bg2 {[%clk 0:03:04.7]} 6... c6 {[%clk 0:02:56.4]}
7. Bc3 {[%clk 0:03:03.2]} 7... O-O {[%clk 0:02:55.9]} 8. Nbd2 {[%clk 0:03:03.8]}
8... Nbd7 {[%clk 0:02:52.5]} 9. Qc2 {[%clk 0:03:04.3]} 9... b6 {[%clk
0:02:51.1]} 10. O-O {[%clk 0:02:56.5]} 10... Bb7 {[%clk 0:02:50.6]} 11. e4
{[%clk 0:02:53.6]} 11... Nxe4 {[%clk 0:02:28.5]} 12. Nxe4 {[%clk 0:02:54.1]}
12... dxe4 {[%clk 0:02:29.8]} 13. Qxe4 {[%clk 0:02:54.6]} 13... Nf6 {[%clk
0:02:30.7]} 14. Qc2 {[%clk 0:02:38.1]} 14... c5 {[%clk 0:02:30.8]} 15. Rad1
{[%clk 0:02:36.2]} 15... Qe7 {[%clk 0:02:19.6]} 16. d5 {[%clk 0:02:26.2]} 16...
exd5 {[%clk 0:02:09.9]} 17. Rfe1 {[%clk 0:02:26.9]} 17... Qd8 {[%clk 0:02:06.9]}
18. cxd5 {[%clk 0:02:01.4]} 18... h6 {[%clk 0:02:06.5]} 19. h4 {[%clk
0:01:53.4]} 19... Re8 {[%clk 0:02:05.6]} 20. Rxe8+ {[%clk 0:01:51.6]} 20... Nxe8
{[%clk 0:02:02.6]} 21. Ne5 {[%clk 0:01:45.7]} 21... Qc7 {[%clk 0:01:55.5]} 22.
Nf3 {[%clk 0:01:38.9]} 22... Rd8 {[%clk 0:01:52.5]} 23. Qf5 {[%clk 0:01:38.6]}
23... Bf8 {[%clk 0:01:46.1]} 24. Nh2 {[%clk 0:01:19.8]} 24... Nd6 {[%clk
0:01:39.4]} 25. Qc2 {[%clk 0:01:11.4]} 25... Nb5 {[%clk 0:01:37.7]} 26. Ng4
{[%clk 0:01:08.2]} 26... Nxc3 {[%clk 0:01:36.6]} 27. bxc3 {[%clk 0:01:08.8]}
27... c4 {[%clk 0:01:36.9]} 28. Ne3 {[%clk 0:01:07.8]} 28... b5 {[%clk
0:01:36.2]} 29. Qf5 {[%clk 0:01:00.6]} 29... Bc8 {[%clk 0:01:28.5]} 30. Qh5
{[%clk 0:00:49]} 30... Bc5 {[%clk 0:01:27.3]} 31. Nc2 {[%clk 0:00:39.8]} 31...
Qxg3 {[%clk 0:01:22]} 32. Nd4 {[%clk 0:00:32]} 32... Bxd4 {[%clk 0:01:21.5]} 33.
Rxd4 {[%clk 0:00:32.7]} 33... Qxc3 {[%clk 0:01:22]} 34. Qd1 {[%clk 0:00:26.2]}
34... b4 {[%clk 0:01:17.9]} 35. d6 {[%clk 0:00:26.7]} 35... Bd7 {[%clk
0:01:17.9]} 36. Bf1 {[%clk 0:00:25.2]} 36... Be6 {[%clk 0:01:13.7]} 37. Bg2
{[%clk 0:00:24]} 37... b3 {[%clk 0:01:14.6]} 38. axb3 {[%clk 0:00:23.9]} 38...
cxb3 {[%clk 0:01:15.1]} 39. Rd3 {[%clk 0:00:24.9]} 39... Qc5 {[%clk 0:01:10]}
40. Qd2 {[%clk 0:00:21.3]} 40... a5 {[%clk 0:01:08]} 41. Bf1 {[%clk 0:00:16.8]}
41... a4 {[%clk 0:01:08.3]} 42. Bg2 {[%clk 0:00:15.9]} 42... a3 {[%clk
0:01:09.2]} 43. Bd5 {[%clk 0:00:13.2]} 43... Bxd5 {[%clk 0:01:04.6]} 44. Rxd5
{[%clk 0:00:12.3]} 44... Qc4 {[%clk 0:01:03.7]} 45. Rd4 {[%clk 0:00:13.2]} 45...
Qe6 {[%clk 0:01:04.3]} 46. Ra4 {[%clk 0:00:11.3]} 46... Qg6+ {[%clk 0:01:01.2]}
47. Kh2 {[%clk 0:00:07.9]} 47... b2 {[%clk 0:01:01.5]} 48. Rxa3 {[%clk
0:00:05.3]} 48... b1=Q {[%clk 0:00:58.9]} 49. Rg3 {[%clk 0:00:06.9]} 49... Qxd6
{[%clk 0:00:58.9]} 50. Qf4 {[%clk 0:00:06.6]} 0-1

[Event "*** Titled Tuesday 3|2 Blitz"]
[Site "Chess.com"]
[Date "2016.09.06"]
[Round "9"]
[White "Rating-Schmating"]
[Black "AllStarShark"]
[Result "0-1"]
[WhiteElo "2216"]
[BlackElo "2291"]
[TimeControl "180+2"]
[EndTime "18:51:29 PDT"]
[Termination "AllStarShark won by checkmate"]

1. e4 {[%clk 0:03:01.9]} 1... c6 {[%clk 0:03:00.2]} 2. Nf3 {[%clk 0:03:02.4]}
2... d5 {[%clk 0:03:02.1]} 3. Nc3 {[%clk 0:03:03.3]} 3... Bg4 {[%clk 0:03:02]}
4. h3 {[%clk 0:03:03.9]} 4... Bxf3 {[%clk 0:03:03.1]} 5. Qxf3 {[%clk 0:03:04.6]}
5... e6 {[%clk 0:03:04.7]} 6. exd5 {[%clk 0:03:02.4]} 6... cxd5 {[%clk
0:03:03.9]} 7. d4 {[%clk 0:03:03]} 7... Nc6 {[%clk 0:03:04.3]} 8. Be3 {[%clk
0:03:02.5]} 8... Nf6 {[%clk 0:03:04.6]} 9. Bd3 {[%clk 0:03:02.7]} 9... Qb6
{[%clk 0:03:05.6]} 10. O-O-O {[%clk 0:02:56.7]} 10... Bb4 {[%clk 0:03:05.4]} 11.
Nb1 {[%clk 0:02:47.6]} 11... Qa5 {[%clk 0:03:01.3]} 12. a3 {[%clk 0:02:42.6]}
12... Be7 {[%clk 0:02:58.8]} 13. Bd2 {[%clk 0:02:41.5]} 13... Qc7 {[%clk
0:02:57.3]} 14. c3 {[%clk 0:02:41.1]} 14... Nxd4 {[%clk 0:02:48]} 15. Bf4 {[%clk
0:02:39.4]} 15... e5 {[%clk 0:02:38.4]} 16. Bxe5 {[%clk 0:02:34]} 16... Nb3+
{[%clk 0:02:36.8]} 17. Kc2 {[%clk 0:02:34.3]} 17... Na1+ {[%clk 0:02:34.2]} 18.
Kc1 {[%clk 0:02:31.9]} 18... Qxe5 {[%clk 0:02:35.1]} 19. Rhe1 {[%clk 0:02:31.7]}
19... Qg5+ {[%clk 0:02:32.6]} 20. Nd2 {[%clk 0:02:20.8]} 20... Nb3+ {[%clk
0:02:32]} 21. Kc2 {[%clk 0:02:22]} 21... Nxd2 {[%clk 0:02:32.9]} 22. Rxd2 {[%clk
0:02:23.3]} 22... O-O {[%clk 0:02:19.1]} 23. Rxe7 {[%clk 0:02:17.1]} 23... Ne4
{[%clk 0:02:18.2]} 24. Rxe4 {[%clk 0:02:08.2]} 24... dxe4 {[%clk 0:02:18]} 25.
Qxe4 {[%clk 0:02:08.8]} 25... g6 {[%clk 0:02:17.3]} 26. h4 {[%clk 0:02:08.9]}
26... Qa5 {[%clk 0:02:09.5]} 27. Qxb7 {[%clk 0:02:01.4]} 27... Qa4+ {[%clk
0:02:07.2]} 28. Kc1 {[%clk 0:01:54.3]} 28... Rfe8 {[%clk 0:02:03.5]} 29. Re2
{[%clk 0:01:45.7]} 29... Qxh4 {[%clk 0:01:48.8]} 30. Bb5 {[%clk 0:01:34.8]}
30... Qh1+ {[%clk 0:01:44.6]} 31. Kc2 {[%clk 0:01:34.1]} 31... Rxe2+ {[%clk
0:01:45.4]} 32. Bxe2 {[%clk 0:01:33.7]} 32... Re8 {[%clk 0:01:22.4]} 33. Bb5
{[%clk 0:01:32]} 33... Re6 {[%clk 0:01:10.6]} 34. Bc4 {[%clk 0:01:24.7]} 34...
Rf6 {[%clk 0:01:11.6]} 35. Qxa7 {[%clk 0:01:05.5]} 35... Qxg2 {[%clk 0:01:09.7]}
36. Qb8+ {[%clk 0:01:03.2]} 36... Kg7 {[%clk 0:01:10.6]} 37. Kb3 {[%clk
0:01:01.7]} 37... Rxf2 {[%clk 0:01:06.9]} 38. Qe5+ {[%clk 0:01:01.9]} 38... Rf6
{[%clk 0:01:07.8]} 39. a4 {[%clk 0:01:00.5]} 39... h5 {[%clk 0:01:06.2]} 40. a5
{[%clk 0:01:01.3]} 40... h4 {[%clk 0:01:07.3]} 41. a6 {[%clk 0:01:02.4]} 41...
h3 {[%clk 0:01:08.1]} 42. a7 {[%clk 0:01:03.7]} 42... h2 {[%clk 0:01:06.4]} 43.
Bd5 {[%clk 0:01:04.4]} 43... h1=Q {[%clk 0:00:57.8]} 44. a8=Q {[%clk 0:00:57.8]}
44... Qd1+ {[%clk 0:00:42.6]} 45. Ka2 {[%clk 0:00:58.1]} 45... Qgf1 {[%clk
0:00:38]} 46. Ka3 {[%clk 0:00:33.8]} 46... Qa1+ {[%clk 0:00:34.3]} 47. Kb4
{[%clk 0:00:34.5]} 47... Qxb2+ {[%clk 0:00:34.4]} 48. Kc5 {[%clk 0:00:35.8]}
48... Qff2+ {[%clk 0:00:33.9]} 49. Qd4 {[%clk 0:00:35.6]} 49... Qxc3+ {[%clk
0:00:35]} 50. Kb5 {[%clk 0:00:34.5]} 50... Qcxd4 {[%clk 0:00:33.4]} 51. Bxf7
{[%clk 0:00:30.6]} 51... Qc5+ {[%clk 0:00:32.1]} 52. Ka4 {[%clk 0:00:30.3]}
52... Qa2+ {[%clk 0:00:32.4]} 53. Bxa2 {[%clk 0:00:30.9]} 53... Rf4+ {[%clk
0:00:30.9]} 54. Kb3 {[%clk 0:00:29.7]} 54... Rb4+ {[%clk 0:00:31]} 55. Ka3
{[%clk 0:00:28.5]} 55... Qc3+ {[%clk 0:00:31.2]} 56. Bb3 {[%clk 0:00:29.5]}
56... Qxb3# {[%clk 0:00:32.4]} 0-1

[Event "*** Titled Tuesday 3|2 Blitz"]
[Site "Chess.com"]
[Date "2016.09.06"]
[Round "9"]
[White "FairChess_on_YouTube"]
[Black "wonderfultime"]
[Result "1/2-1/2"]
[WhiteElo "2705"]
[BlackElo "2692"]
[TimeControl "180+2"]
[EndTime "18:53:24 PDT"]
[Termination "Game drawn - insufficient material"]

1. Nc3 {[%clk 0:03:01.9]} 1... d5 {[%clk 0:02:59.7]} 2. e4 {[%clk 0:03:02.5]}
2... dxe4 {[%clk 0:02:58.8]} 3. Nxe4 {[%clk 0:03:03.3]} 3... Bf5 {[%clk
0:03:00.5]} 4. Ng3 {[%clk 0:03:03.1]} 4... Bg6 {[%clk 0:03:01.7]} 5. Nf3 {[%clk
0:03:03.9]} 5... e6 {[%clk 0:02:57.4]} 6. h4 {[%clk 0:03:02.8]} 6... h6 {[%clk
0:02:20.5]} 7. Ne5 {[%clk 0:03:02.7]} 7... Bh7 {[%clk 0:02:21.9]} 8. Qf3 {[%clk
0:02:58.7]} 8... Qf6 {[%clk 0:02:23.4]} 9. Bb5+ {[%clk 0:02:27]} 9... c6 {[%clk
0:02:23.1]} 10. Nxc6 {[%clk 0:02:23.1]} 10... Nd7 {[%clk 0:01:46.8]} 11. Qxf6
{[%clk 0:02:04.8]} 11... Ngxf6 {[%clk 0:01:48.7]} 12. Nd4 {[%clk 0:02:02.8]}
12... Bc5 {[%clk 0:01:49.1]} 13. Nb3 {[%clk 0:02:02.1]} 13... Bd6 {[%clk
0:01:43.4]} 14. c3 {[%clk 0:01:57.7]} 14... a6 {[%clk 0:01:43.1]} 15. Be2 {[%clk
0:01:49.6]} 15... Ne5 {[%clk 0:01:39.4]} 16. d4 {[%clk 0:01:45.3]} 16... Nd3+
{[%clk 0:01:40.7]} 17. Bxd3 {[%clk 0:01:40.1]} 17... Bxd3 {[%clk 0:01:42.6]} 18.
Nc5 {[%clk 0:01:38.7]} 18... Bxc5 {[%clk 0:01:10.5]} 19. dxc5 {[%clk 0:01:40.6]}
19... O-O-O {[%clk 0:01:12.4]} 20. Be3 {[%clk 0:01:37.5]} 20... Ng4 {[%clk
0:01:11.8]} 21. O-O-O {[%clk 0:01:36]} 21... e5 {[%clk 0:01:08.8]} 22. Rhe1
{[%clk 0:01:30]} 22... f5 {[%clk 0:01:05.7]} 23. f3 {[%clk 0:01:22.8]} 23... Nf6
{[%clk 0:01:06.7]} 24. Bd4 {[%clk 0:01:10.3]} 24... exd4 {[%clk 0:01:02.4]} 25.
Rxd3 {[%clk 0:01:09.8]} 25... dxc3 {[%clk 0:01:04.3]} 26. Rxc3 {[%clk
0:01:07.6]} 26... Nd5 {[%clk 0:01:01.3]} 27. Rb3 {[%clk 0:00:56.9]} 27... Rhf8
{[%clk 0:00:45.8]} 28. Re5 {[%clk 0:00:50.3]} 28... g6 {[%clk 0:00:22.8]} 29.
Ne2 {[%clk 0:00:37.5]} 29... Rf7 {[%clk 0:00:20.8]} 30. Rd3 {[%clk 0:00:27.5]}
30... Nb4 {[%clk 0:00:21.8]} 31. Rxd8+ {[%clk 0:00:27.7]} 31... Kxd8 {[%clk
0:00:23.7]} 32. Nf4 {[%clk 0:00:18.3]} 32... g5 {[%clk 0:00:20.2]} 33. hxg5
{[%clk 0:00:20.2]} 33... hxg5 {[%clk 0:00:22.1]} 34. a3 {[%clk 0:00:20.9]} 34...
Nc6 {[%clk 0:00:22]} 35. Rd5+ {[%clk 0:00:21.5]} 35... Ke7 {[%clk 0:00:21.6]}
36. Ng6+ {[%clk 0:00:19.2]} 36... Kf6 {[%clk 0:00:20.2]} 37. Rd6+ {[%clk
0:00:20]} 37... Kg7 {[%clk 0:00:21.7]} 38. f4 {[%clk 0:00:20.4]} 38... gxf4
{[%clk 0:00:18.2]} 39. Nxf4 {[%clk 0:00:22.3]} 39... Re7 {[%clk 0:00:19.4]} 40.
b4 {[%clk 0:00:19.9]} 40... Kf7 {[%clk 0:00:20]} 41. Nd5 {[%clk 0:00:20]} 41...
Re2 {[%clk 0:00:18.5]} 42. g3 {[%clk 0:00:19.9]} 42... Ra2 {[%clk 0:00:17.1]}
43. Nc3 {[%clk 0:00:18.5]} 43... Rg2 {[%clk 0:00:14.7]} 44. Rd7+ {[%clk
0:00:19.4]} 44... Ke6 {[%clk 0:00:15.5]} 45. Rxb7 {[%clk 0:00:21]} 45... Rxg3
{[%clk 0:00:16.9]} 46. Kb2 {[%clk 0:00:20.4]} 46... Nd4 {[%clk 0:00:16.6]} 47.
Rb6+ {[%clk 0:00:19.9]} 47... Ke5 {[%clk 0:00:18.2]} 48. Na4 {[%clk 0:00:10.3]}
48... f4 {[%clk 0:00:17.9]} 49. c6 {[%clk 0:00:10.7]} 49... Rg7 {[%clk
0:00:15.5]} 50. Rb7 {[%clk 0:00:10.5]} 50... Rg2+ {[%clk 0:00:13.5]} 51. Kc3
{[%clk 0:00:11.3]} 51... Nxc6 {[%clk 0:00:13.4]} 52. Nc5 {[%clk 0:00:12.1]}
52... Rg3+ {[%clk 0:00:14.5]} 53. Kb2 {[%clk 0:00:12.1]} 53... f3 {[%clk
0:00:14.4]} 54. Rf7 {[%clk 0:00:12]} 54... Nd4 {[%clk 0:00:15.7]} 55. Kc3 {[%clk
0:00:10.1]} 55... Nf5 {[%clk 0:00:15.4]} 56. Kd2 {[%clk 0:00:11]} 56... Rg2+
{[%clk 0:00:16.4]} 57. Ke1 {[%clk 0:00:09.2]} 57... Ra2 {[%clk 0:00:17.9]} 58.
Nxa6 {[%clk 0:00:05.4]} 58... Kf4 {[%clk 0:00:16.2]} 59. Nc5 {[%clk 0:00:05.2]}
59... Ke3 {[%clk 0:00:17.5]} 60. Kd1 {[%clk 0:00:04.3]} 60... Nd4 {[%clk
0:00:10.7]} 61. Re7+ {[%clk 0:00:05.5]} 61... Kf2 {[%clk 0:00:12.3]} 62. Nd3+
{[%clk 0:00:06.3]} 62... Kg3 {[%clk 0:00:12.4]} 63. Rg7+ {[%clk 0:00:06.8]}
63... Kh4 {[%clk 0:00:13.9]} 64. Rf7 {[%clk 0:00:06.8]} 64... Kg3 {[%clk
0:00:12.9]} 65. Rg7+ {[%clk 0:00:08.1]} 65... Kh4 {[%clk 0:00:14.3]} 66. Rf7
{[%clk 0:00:09.2]} 66... Kg3 {[%clk 0:00:15.8]} 67. Rg7+ {[%clk 0:00:10.3]}
67... Kh2 {[%clk 0:00:13.1]} 68. Rf7 {[%clk 0:00:09.8]} 68... Rxa3 {[%clk
0:00:14]} 69. Ne5 {[%clk 0:00:09.9]} 69... Kg3 {[%clk 0:00:12.9]} 70. Nxf3
{[%clk 0:00:10.3]} 70... Nxf3 {[%clk 0:00:14.8]} 71. Kc2 {[%clk 0:00:11.2]}
71... Nd4+ {[%clk 0:00:16.1]} 72. Kd2 {[%clk 0:00:11.9]} 72... Rb3 {[%clk
0:00:16.2]} 73. Rd7 {[%clk 0:00:13]} 73... Nc6 {[%clk 0:00:16.1]} 74. Rd3+
{[%clk 0:00:13.5]} 74... Rxd3+ {[%clk 0:00:17.1]} 75. Kxd3 {[%clk 0:00:15.4]}
75... Nxb4+ {[%clk 0:00:15.3]} 1/2-1/2